Cogmind - Beta 13 @@@ ROGUE MODE // 2024.05.22 @ 19:27:07 Player: Martoko Result: Destroyed by DN-O06(R) with Subdweller Beam Cannon Performance ------------- Evolutions (0) 0 Regions Visited (3) 600 Robots Destroyed (27) 135 Value Destroyed (349) 349 Prototype IDs (0) 0 Alien Tech Used (0) 0 Bonus (102) 102 TOTAL SCORE: 1186 Bonus ------- Follower Combat Kills 102 Cogmind --------- Core Integrity 0/250 Matter 300/300 Energy 100/100 System Corruption 0% Temperature Cool (9) Movement Core (400) Ox7 Location -10/Subcaves Parts ------- > --- POWER (1) -------- (None) > --- PROPULSION (2) --- (None) > --- UTILITY (2) ------ Large Storage Unit Visual Processing Unit > --- WEAPON (2) ------- Medium Laser > --- INVENTORY (15) --- Ion Engine Light Treads Small Laser Mining Laser Peak State ------------ > --- POWER ------------ Light Nuclear Core > --- PROPULSION ------- Aluminum Leg Aluminum Leg > --- UTILITY ---------- Large Storage Unit Visual Processing Unit > --- WEAPON ----------- Particle Gun Beamcaster > --- INVENTORY -------- Ion Engine Light Treads Medium Laser Small Laser Mining Laser [Rating: 15] Favorites ----------- Power Light Nuclear Core Engine Ion Engine Power Core Light Nuclear Core Propulsion Aluminum Leg Treads Light Treads Leg Aluminum Leg Wheel Wheel Utility Large Storage Unit Device Improved Terrain Scanner Storage Large Storage Unit Processor Visual Processing Unit Weapon Particle Gun Energy Gun Particle Gun Ballistic Gun Assault Rifle Build | -11 -10 -10 -10 ------- Run | Yrd Mat Min Sub Slots Evolved . | . . . . Power . | . . . . Propulsion . | . . . . Utility . | . . . . Weapon . | . . . . Parts Attached 19 | 8 4 6 1 Power 2 | 1 1 . . Engine 1 | 1 . . . Core 1 | . 1 . . Reactor . | . . . . Propulsion 6 | 2 . 4 . Treads 2 | 2 . . . Leg 2 | . . 2 . Wheel 2 | . . 2 . Hover . | . . . . Flight . | . . . . Utility 4 | 2 2 . . Device 1 | 1 . . . Storage 2 | 1 1 . . Processor 1 | . 1 . . Hackware . | . . . . Protection . | . . . . Artifact . | . . . . Weapon 7 | 3 1 2 1 Energy Gun 6 | 2 1 2 1 Energy Cannon . | . . . . Ballistic Gun 1 | 1 . . . Ballistic Cannon . | . . . . Launcher . | . . . . Special Weapon . | . . . . Impact Weapon . | . . . . Slashing Weapon . | . . . . Piercing Weapon . | . . . . Special Melee Weapon . | . . . . Unidentified Prototypes . | . . . . Parts Lost 10 | . 4 1 5 Power 2 | . 1 . 1 Propulsion 4 | . 2 . 2 Utility 1 | . 1 . . Weapon 3 | . . 1 2 Highest Loss Streak 4 | . 2 1 4 To Critical Strikes . | . . . . Average Slot Usage (%) 98 | . 96 99 99 Engine 1 | . 7 . . Core 12 | . 6 14 14 Treads 3 | . 26 . . Leg 22 | . . 26 27 Device 1 | . 7 . . Storage 14 | . 14 14 14 Processor 12 | . 4 14 14 Energy Gun 25 | . 14 26 27 Ballistic Gun 2 | . 14 . . Naked Turns . | . . . . Heaviest Build 33 | 15 31 33 33 Greatest Support 40 | 40 40 20 20 Greatest Overweight (x) 9 | 4 9 9 7 Average Overweight (x) . | . . 1 1 Largest Inventory Capacity 15 | 8 15 15 15 Average Capacity 14 | 7 14 15 15 Most Carried 6 | 3 4 6 5 Average Carried 3 | 1 3 3 4 Final Capacity 15 | 8 15 15 15 Final Carried 5 | 3 4 5 4 Class Distribution -------------------- 76% | Scavenger-Mutant 23% | Mutant Dominant Class ---------------- Mutant | -10/Materials Scavenger-Mutant | -10/Mines Scavenger-Mutant | -10/Subcaves Resources | -11 -10 -10 -10 ----------- Run | Yrd Mat Min Sub Matter Collected 553 | 187 179 187 . Remotely . | . . . . Salvage Created 777 | 149 337 291 . Parts 65 | 18 26 21 . Haulers Intercepted . | . . . . Recyclers Shooed 3 | 1 1 1 . Parts Field Recycled . | . . . . Retrieved Matter . | . . . . Parts Self-Destructed 14 | . . . 14 Prevented . | . . . . Kills | -11 -10 -10 -10 ------- Run | Yrd Mat Min Sub Combat Hostiles Destroyed 12 | . 7 5 . Guns 12 | . 7 5 . Classes Destroyed 6 | 2 3 1 . Worker 2 | . . 2 . Tunneler 7 | 5 1 1 . Recycler 4 | 1 2 1 . Watcher 2 | . 2 . . Swarmer 8 | . 5 3 . Grunt 4 | . 2 2 . Best Kill Streak 4 | 2 4 3 . Combat Bots Only 2 | . 2 2 . Max Kills in Single Turn 2 | 1 2 1 . Gunslinging . | . . . . Exploded . | . . . . Melee . | . . . . Uniques/NPCs Destroyed . | . . . . Combat | -11 -10 -10 -10 -------- Run | Yrd Mat Min Sub Hostile Shots Fired 115 | . 77 17 21 Missed 24 | . 18 1 5 Damage Taken 1079 | . 531 141 407 Core 253 | . 96 37 120 Absorbed by Shields . | . . . . Core Remaining (%) 100 | 100 . . . Volleys Fired 78 | 19 38 21 . Largest 2 | 2 2 2 . Hottest 115 | 70 85 115 . Shots Fired 152 | 38 75 39 . Gun 152 | 38 75 39 . Cannon . | . . . . Launcher . | . . . . Special . | . . . . Kinetic 62 | 19 38 5 . Thermal 90 | 19 37 34 . Explosive . | . . . . Electromagnetic . | . . . . Robot Hit Streak 4 | 4 4 3 . Robot Miss Streak 7 | 2 7 6 . Penetration Max . | . . . . Secondary Targets 1 | . 1 . . Max Gunslinging Chain 1 | . 1 . . Shots Hit Robots 75 | 23 38 14 . Core Hits 33 | 7 15 11 . Critical Kills . | . . . . Critical Parts Destroyed . | . . . . Critical Strikes 2 | 1 1 . . Burn 2 | 1 1 . . Melee Attacks . | . . . . Impact . | . . . . Slashing . | . . . . Piercing . | . . . . Sneak Attacks . | . . . . Combat Hostiles . | . . . . Follow-up Attacks . | . . . . Damage Inflicted 1048 | 283 564 201 . Guns 1041 | 283 564 194 . Cannons . | . . . . Explosions . | . . . . Melee . | . . . . Ramming 7 | . . 7 . Kinetic 480 | 158 275 47 . Thermal 561 | 125 289 147 . Explosive . | . . . . Electromagnetic . | . . . . Impact . | . . . . Slashing . | . . . . Piercing . | . . . . Highest Corruption . | . . . . Average Corruption . | . . . . Corruption Purged . | . . . . Corruption Blocked . | . . . . Overload Shots . | . . . . Overflow Damage . | . . . . Projectiles . | . . . . Explosions . | . . . . Melee . | . . . . Knockbacks . | . . . . Impact . | . . . . Kinetic . | . . . . Secondary . | . . . . Self-Inflicted Damage . | . . . . Shots . | . . . . Rammed . | . . . . Targets Rammed 1 | . . 1 . Kicked 1 | . . 1 . Crushed . | . . . . Highest Temperature 516 | 27 516 300 231 Average Temperature 122 | 12 189 90 131 Received Heat Transfer 470 | . 105 27 338 Effects 11 | . 11 . . Shutdowns 2 | . 2 . . Energy Bleed 1 | . 1 . . Matter Decay 1 | . 1 . . Short Circuit 1 | . 1 . . Damage (minor) 2 | . 2 . . Damage (major) 4 | . 4 . . Siege Activations . | . . . . Robots Corrupted . | . . . . Combat Hostiles . | . . . . Parts Fried . | . . . . Impact Corruptions . | . . . . Robots Melted . | . . . . Combat Hostiles . | . . . . Parts Melted . | . . . . Heat Transferred 1591 | 444 777 370 . Parts Sabotaged . | . . . . Parts Stolen . | . . . . Parts Stripped . | . . . . Power Chain Reactions . | . . . . Alert | -11 -10 -10 -10 ------- Run | Yrd Mat Min Sub Peak Influence 248 | 30 248 100 . Initial 19 | . 19 10 . Average 53 | 9 117 44 . Maximum Alert Level 1 | . 1 . . Low Security (%) 96 | 100 80 100 . Level 1 3 | . 19 . . Level 2 . | . . . . Level 3 . | . . . . Level 4 . | . . . . Level 5 . | . . . . High Security . | . . . . Max Security . | . . . . Squads Dispatched 1 | . 1 . . Investigation . | . . . . Extermination . | . . . . Reinforcement 1 | . 1 . . Assault . | . . . . Garrison . | . . . . Intercept . | . . . . Searches Triggered . | . . . . Construction Impeded . | . . . . Haulers Reinforced . | . . . . Active Scanning Responses . | . . . . Cargo Convoy Interrupts . | . . . . Stealth | -11 -10 -10 -10 --------- Run | Yrd Mat Min Sub Distress Signals . | . . . . Communications Jammed . | . . . . Distress Signals . | . . . . Times Spotted 29 | . 15 7 7 Peak Tracking Total 5 | . 4 2 5 Tactical Retreats 3 | . 1 1 1 Traps | -11 -10 -10 -10 ------- Run | Yrd Mat Min Sub Traps Triggered 1 | . . . 1 Indirectly . | . . . . Trap Hack Attempts . | . . . . Triggered . | . . . . Disarmed . | . . . . Reprogrammed . | . . . . Reused . | . . . . Traps Extracted . | . . . . Installed . | . . . . Triggered . | . . . . Machines | -11 -10 -10 -10 ---------- Run | Yrd Mat Min Sub Machines Disabled . | . . . . Max in Single Turn . | . . . . Machines Repaired . | . . . . Machines Dismantled . | . . . . Machines Sabotaged . | . . . . Overloaded Fab Kills . | . . . . Hacking | -11 -10 -10 -10 --------- Run | Yrd Mat Min Sub Machines Accessed . | . . . . Terminals . | . . . . Fabricators . | . . . . Repair Stations . | . . . . Recycling Units . | . . . . Scanalyzers . | . . . . Garrison Access . | . . . . Total Hacks . | . . . . Successful . | . . . . Failed . | . . . . Catastrophic . | . . . . Database Lockouts . | . . . . Manual . | . . . . Terminals . | . . . . Fabricators . | . . . . Repair Stations . | . . . . Recycling Units . | . . . . Scanalyzers . | . . . . Garrison Access . | . . . . Terminal Hacks . | . . . . Fabricator Hacks . | . . . . Repair Station Hacks . | . . . . Recycling Unit Hacks . | . . . . Scanalyzer . | . . . . Garrison Access Hacks . | . . . . Unauthorized Hacks . | . . . . Terminals . | . . . . Fabricators . | . . . . Repair Stations . | . . . . Recycling Units . | . . . . Scanalyzers . | . . . . Garrison Access . | . . . . Data Cores Recovered . | . . . . Used . | . . . . Hacking Detections . | . . . . Full Trace Events . | . . . . Feedback Events . | . . . . Feedback Blocked . | . . . . Robot Schematics Acquired . | . . . . Robots Built . | . . . . Authchips . | . . . . Time . | . . . . Total Robot Build Rating . | . . . . Part Schematics Acquired . | . . . . Parts Built . | . . . . Authchips . | . . . . Time . | . . . . Total Part Build Rating . | . . . . Parts Repaired . | . . . . Time . | . . . . Parts Recycled . | . . . . Recycled Matter . | . . . . Retrieved Matter . | . . . . Retrieved Components . | . . . . Parts Scanalyzed . | . . . . Part Schematics Acquired . | . . . . Parts Damaged . | . . . . Bothacking | -11 -10 -10 -10 ------------ Run | Yrd Mat Min Sub Used RIF Installer . | . . . . Robots Hacked . | . . . . Non-combat . | . . . . Combat . | . . . . Robot Hacks Applied . | . . . . Relay Couplers Released . | . . . . Fabnet Peak Effective % . | . . . . Robots Rewired . | . . . . Allies Hacked . | . . . . Hacks Repelled . | . . . . Allies | -11 -10 -10 -10 -------- Run | Yrd Mat Min Sub Total Allies 5 | . . 5 . Largest Group 5 | . . 5 2 Highest-Rated Group 80 | . . 80 32 Highest-Rated Ally 31 | . . 31 16 Total Orders . | . . . . Ally Attacks 30 | . . 19 11 Total Damage 350 | . . 225 125 Kills 8 | . . 3 5 Allies Corrupted . | . . . . Allies Melted . | . . . . Intel | -11 -10 -10 -10 ------- Run | Yrd Mat Min Sub Robot Analysis Total . | . . . . Derelict Logs Recovered 4 | . . 2 2 Drone Launches . | . . . . Drone Recoveries . | . . . . Exploration | -11 -10 -10 -10 ------------- Run | Yrd Mat Min Sub Turns Passed 3174 | 290 434 1577 873 Spaces Moved 1584 | 131 183 812 458 Core 35 | 28 3 3 1 Treads 283 | 103 180 . . Legs 1204 | . . 747 457 Wheels 62 | . . 62 . Hover . | . . . . Flight . | . . . . Fastest Speed 50 | 50 160 95 190 Average Speed 183 | 167 171 184 190 Slowest Speed 500 | 250 500 500 400 Overloaded Moves . | . . . . Propulsion Burnouts . | . . . . Robots Hopped . | . . . . Cave-ins Triggered . | . . . . Exploration Rate (%) 40 | 7 32 96 28 Regions Visited 3 Branch Regions 2 Pre-discovered Areas . | . . . . Known Exits Taken . | . . . . Unknown Exits Taken 3 | 1 1 1 . Scrap Searched 2 | . . 1 1 Spaces Dug . | . . . . Terrain Destroyed . | . . . . Melee . | . . . . Projectile . | . . . . AOE . | . . . . Terrain Rammed . | . . . . Walls Destroyed . | . . . . Machines Disabled . | . . . . Actions | -11 -10 -10 -10 --------- Run | Yrd Mat Min Sub Total 1706 | 162 232 853 459 Wait 11 | . 3 8 . Move 1581 | 130 182 811 458 Hop . | . . . . Pick Up 7 | 4 2 1 . Fast Attach 14 | 6 3 5 . Attach 3 | 2 . . 1 Detach 4 | 1 1 2 . Swap 2 | . 1 1 . Drop 5 | . 2 3 . Fire 78 | 19 38 21 . Melee . | . . . . Ram . | . . . . Kick 1 | . . 1 . Crush . | . . . . Escape Stasis . | . . . . Rewire . | . . . . Trap . | . . . . Miscellaneous . | . . . . Route ------- -11/Scrapyard -10/Materials -10/Mines (discovered 3 exits: [*Mat x2] / [*Sub]) -10/Subcaves History --------- Turn | Location | Event 29 | -11/Scrapyard | Discovered new exit (range 16) 291 | -11/Scrapyard | Entered Materials 311 | -10/Materials | Build established: Mutant 620 | -10/Materials | Discovered new exit (range 8) 725 | -10/Materials | Entered Mines 763 | -10/Mines | Discovered new exit (range 11) 801 | -10/Mines | Discovered new exit (range 5) 915 | -10/Mines | Learned Materials garrison access intel 1045 | -10/Mines | Build established: Scavenger-Mutant 1100 | -10/Mines | Learned location of 1 exit from Materials 1285 | -10/Mines | Core integrity fell below 50% 1335 | -10/Mines | Assisted by bots powering up and referring to "LRC-V3" 2249 | -10/Mines | Discovered new exit (range 11) 2302 | -10/Mines | Entered Subcaves 2302 | -10/Subcaves | Accompanied by 2 allies 2308 | -10/Subcaves | Learned Materials garrison access intel 2406 | -10/Subcaves | A swath of the cavern ceiling suddenly collapsed 3174 | -10/Subcaves | Core integrity fell below 20% 3175 | -10/Subcaves | Destroyed by DN-O06(R) with Subdweller Beam Cannon Last Messages --------------- 02406_ Trooper 1a crushed by falling debris. A swath of the cavern ceiling suddenly collapses. 02445_ S-10 Pest destroyed. 02447_ Trooper 1b destroyed. 02800_ Acquired derelict log, extracted data. Data stored: Storage entrances (x1). 02956_ Searching scrap... 02956_ Found Sub. Machine Gun. 02956_ Found 39 Matter. 02963_ Subatomizers dissect the Sub. Machine Gun. 03119_ Triggered Shrapnel Trap. 03119_ An expanding cloud of shrapnel blasts out in all directions. 03119_ Particle Gun destroyed. 03164_ Beamcaster destroyed. 03165_ Critical hit (Meltdown: +260). 03169_ Aluminum Leg destroyed. 03172_ Lgt. Nuclear Core destroyed. Map ----- +----------------------------------------------------+ | ?????????????????????????????????????????????????? | | ?????????????????????????????????????????????????? | | ?????????????????????????????????????????????????? | | ?????????????????????????????????????????????????? | | ?????????????????????????????????????????????????? | | ?????????????????????????????????????????????????? | | ?????????????????????????????????????????????????? | | ?????????????????????????????????????????????????? | | ?????????????????????????????????????????????????? | | ?????????????????????????????????????????????????? | | ????????????????????????????????????????????????? | | ?????????????????????????????????????????????????# | | ????????????????????????????????????????????????? | | ?????????????????????????????????????????????????# | | ?????????????????????????????????????????????????? | | ?????????????????????????????????????????????????? | | ????????????????????????????????????#####??????##? | | ???????????????????????????????????## ##?????# # | | ????????????????????????#####?###### ##????# | | ????????????????????????#" ### # ^ ###??## | | ????????????????????###?#" ^ #### | | ???????????????????##""##"R "" | | ???????????????????# """" #"### # ## | | ???????????????????# """ R "" ####### ##????# | | ???????????????????# " #??## ######?? # | | ???????????????????# @ ## #?#" ""## ## # | | ???????????????????# ### ###" "" #? | | ???????????????????# ##?? ## ####? | | ?????????????????" #??? ## "# #???? | | ??????????????? #??? #### "# ##??? | | ????????????? # # ## #???##??### ### ##?# | | ????????????###?#?##? ###?????????#^^ #### ### | | ????????????????????## ??????????? #### | | ?????????????????????# ?????????? ### | | ????????????????????? ????????# #?# | | ????????????????????? ????????# #??# | | ???????????????????? ""????????## #???## # | | ????????????????????"" ?????????###???### # | | ???????????????????" ???????????????# | | ????????????????????? ????????????????# | | ??????????????????????????????????????#% | | ??????????????????????????????????????# # | | ??????????????????????????????????????# # | | ??????????????????????????????????????# # | | ??????????????????????????????????????## ### ## | | ???????????????????????????????????????###?## ## | | ????????????????????????????????????????????# | | ???????????????????????????????????????????## | | ??????????????????????????????????????????## | | ?????????????????????????????????????????## | +----------------------------------------------------+ Best States ------------- Heat Dissipation 25 Energy Generation 14 Energy Capacity 250 Matter Stores 300 Matter Capacity 300 Sight Range 18 Terrain Scan Range 16 Terrain Scan Density 10 Evasion (%) 41 Recoil Reduction 2 Item Schematics ----------------- None Robot Schematics ------------------ None Fabricated ------------ Nothing Alien Tech Used ----------------- None Achievements -------------- The More The Merrier Challenges ------------ None Game ------ Seed NullGuidedStick Manual? 0 Play Time 00:15:16 Cumulative 13.2 hours Start 2024.05.22 @ 19:13:50 End 2024.05.22 @ 19:27:07 Sessions 1 Manual Loads 0 Difficulty Rogue Special Mode None Game No. 11 Rogue 11 Adventurer 0 Explorer 0 Win Type - Total 0 Types 0/0/0/0/0/0/0/0/0 Lore% 15 Gallery% 21 Achievement% 17 Wizard Run 0 Options --------- Layout 1 ASCII 0 Keyboard 1 Movement Arrows Keybinds 0 Fullscreen 1 Font 24/Smallcaps Map View 50x35 Zoom Use 0% Tactical HUD 1 Map Filters NONE Filters NONE Steam 0 RUN: c207fcd7-baf3-49a8-9db4-8d65de66a0e1